[Event "FIDE WCCC Girls-10 2024"]
[Site "Montesilvano"]
[Date "2024.11.23"]
[Round "8.44"]
[White "Kovacikova, Simona"]
[Black "Kocherha, Yelizavieta"]
[Result "1-0"]
[Annotator "NA RC"]
[ECO "B13"]
[WhiteElo "1412"]
[BlackElo "1523"]
[PlyCount "79"]
[EventDate "2024.11.18"]
[EventType "swiss"]
[EventCountry "ITA"]
[SourceTitle "playchess.com"]
[Source "ChessBase"]
[SourceQuality "1"]
[TimeControl "5400+30"]

1. e4 {[%emt 0:00:04]} c6 {[%emt 0:00:11]} 2. d4 {[%emt 0:00:04]} d5 {[%emt 0:00:15]} 3. exd5 {[%emt 0:00:11]} cxd5 {[%emt 0:00:38]} 4. Bd3 {[%emt 0:00:21]} Nc6 {[%emt 0:00:39]} 5. c3 {[%emt 0:00:19]} Nf6 {[%emt 0:00:50]} 6. h3 {[%emt 0:00:22]} g6 {[%emt 0:00:16]} 7. Nf3 {[%emt 0:00:56]} Bg7 {[%emt 0:00:13]} 8. O-O {[%emt 0:00:59]} O-O {[%emt 0:00:45]} 9. Re1 {[%emt 0:00:48]} Bf5 {[%emt 0:00:26]} 10. Be2 {[%emt 0:01:09]} Rc8 {[%emt 0:00:54]} 11. Be3 {[%emt 0:02:44]} Qb6 {[%emt 0:01:06]} 12. b3 {[%emt 0:03:11]} Rfe8 {[%emt 0:00:46]} 13. Nbd2 {[%emt 0:01:23]} e5 {[%emt 0:00:19]} 14. dxe5 {[%emt 0:00:34]} Nxe5 {[%emt 0:00:17]} 15. Bxb6 {[%emt 0:00:13]} Nxf3+ {[%emt 0:00:43]} 16. Bxf3 {[%emt 0:02:17]} Rxe1+ {[%emt 0:00:22]} 17. Qxe1 {[%emt 0:00:07]} axb6 {[%emt 0:00:17]} 18. c4 {[%emt 0:01:09]} dxc4 {[%emt 0:00:26]} 19. Nxc4 {[%emt 0:00:12]} Nd7 {[%emt 0:00:47]} 20. Rd1 {[%emt 0:01:33]} b5 {[%emt 0:00:19]} 21. Ne3 {[%emt 0:01:20]} Be6 {[%emt 0:00:15]} 22. Nd5 {[%emt 0:02:09]} Bxd5 {[%emt 0:00:48]} 23. Bxd5 {[%emt 0:00:43]} Nf6 {[%emt 0:02:20]} 24. Bxb7 {[%emt 0:03:58]} Re8 {[%emt 0:00:40]} 25. Qb4 {[%emt 0:03:28]} h5 {[%emt 0:04:55]} 26. Qxb5 {[%emt 0:02:23]} Kh7 {[%emt 0:01:34]} 27. Bd5 {[%emt 0:01:10]} Re5 {[%emt 0:00:44]} 28. Qb7 {[%emt 0:01:06]} Nxd5 {[%emt 0:01:14]} 29. Rxd5 {[%emt 0:01:03]} Re1+ {[%emt 0:00:56]} 30. Kh2 {[%emt 0:00:10]} Be5+ {[%emt 0:00:44]} 31. Rxe5 {[%emt 0:03:28]} Rxe5 {[%emt 0:00:34]} 32. Qxf7+ {[%emt 0:00:06]} Kh6 {[%emt 1:21:17]} 33. Qf4+ {[%emt 0:00:15]} Rg5 {[%emt 0:00:00]} 34. h4 {[%emt 0:00:09]} Kh7 {[%emt 0:00:00]} 35. Qxg5 {[%emt 0:00:17]} Kh8 {[%emt 0:00:00]} 36. Qe7 {[%emt 0:00:47]} g5 {[%emt 0:00:00]} 37. b4 {[%emt 0:00:22]} g4 {[%emt 0:00:00]} 38. b5 {[%emt 0:00:15]} g3+ {[%emt 0:00:00]} 39. Kxg3 {[%emt 0:00:19]} Kg8 {[%emt 0:00:00]} 40. b6 {[%emt 0:00:12]} 1-0

[Event "FIDE WCCC Girls-10 2024"]
[Site "Montesilvano"]
[Date "2024.11.23"]
[Round "8.48"]
[White "Deviatkova, Diana"]
[Black "Damaso Tacoronte, Carolina"]
[Result "1/2-1/2"]
[Annotator "NA RC"]
[ECO "C01"]
[WhiteElo "1503"]
[BlackElo "1875"]
[PlyCount "54"]
[EventDate "2024.11.18"]
[EventType "swiss"]
[EventCountry "ITA"]
[SourceTitle "playchess.com"]
[Source "ChessBase"]
[SourceQuality "1"]
[TimeControl "5400+30"]

1. e4 {[%emt 0:00:04]} e6 {[%emt 0:00:03]} 2. d4 {[%emt 0:00:13]} d5 {[%emt 0:00:03]} 3. exd5 {[%emt 0:00:30]} exd5 {[%emt 0:00:06]} 4. Nc3 {[%emt 0:00:09]} Bb4 {[%emt 0:00:21]} 5. Bd2 {[%emt 0:01:07]} Nc6 {[%emt 0:01:08]} 6. Bb5 {[%emt 0:02:54]} Nge7 {[%emt 0:01:13]} 7. a3 {[%emt 0:01:12]} Ba5 {[%emt 0:00:33]} 8. h3 {[%emt 0:01:22]} O-O {[%emt 0:00:51]} 9. Nf3 {[%emt 0:00:13]} a6 {[%emt 0:01:45]} 10. Ba4 {[%emt 0:00:32]} Re8 {[%emt 0:02:30]} 11. O-O {[%emt 0:01:23]} Nf5 {[%emt 0:04:12]} 12. Bg5 {[%emt 0:03:34]} f6 {[%emt 0:01:16]} 13. Bf4 {[%emt 0:03:58]} Bxc3 {[%emt 0:04:45]} 14. bxc3 {[%emt 0:00:42]} Bd7 {[%emt 0:02:58]} 15. Bb3 {[%emt 0:00:30]} Be6 {[%emt 0:02:58]} 16. Re1 {[%emt 0:00:34]} Qd7 {[%emt 0:02:25]} 17. Qd2 {[%emt 0:01:39]} Bf7 {[%emt 0:04:18]} 18. Ba4 {[%emt 0:05:46]} b5 {[%emt 0:01:09]} 19. Bb3 {[%emt 0:00:09]} Rac8 {[%emt 0:05:58]} 20. a4 {[%emt 0:01:47]} Na5 {[%emt 0:03:38]} 21. axb5 {[%emt 0:01:27]} Nxb3 {[%emt 0:00:40]} 22. cxb3 {[%emt 0:00:07]} axb5 {[%emt 0:02:01]} 23. Rec1 {[%emt 0:01:09]} c6 {[%emt 0:01:51]} 24. b4 {[%emt 0:04:19]} Nd6 {[%emt 0:03:15]} 25. Ra2 {[%emt 0:06:12]} Nc4 {[%emt 0:01:12]} 26. Qd1 {[%emt 0:00:19]} Qf5 {[%emt 0:01:18]} 27. Bg3 {[%emt 0:02:24]} Qe4 {[%emt 0:04:00]} 1/2-1/2

[Event "FIDE WCCC Girls-10 2024"]
[Site "Montesilvano"]
[Date "2024.11.24"]
[Round "9.1"]
[White "Sholpanbek, Zhansaya"]
[Black "Tselmuun, Ider"]
[Result "0-1"]
[Annotator "NA RC"]
[ECO "B31"]
[WhiteElo "1657"]
[BlackElo "1846"]
[PlyCount "114"]
[EventDate "2024.11.18"]
[EventType "swiss"]
[EventCountry "ITA"]
[SourceTitle "playchess.com"]
[Source "ChessBase"]
[SourceQuality "1"]
[TimeControl "5400+30"]

1. e4 {[%emt 0:00:26]} c5 {[%emt 0:00:17]} 2. Nf3 {[%emt 0:00:08]} Nc6 {[%emt 0:05:11]} 3. Bb5 {[%emt 0:00:23]} g6 {[%emt 0:00:22]} 4. Bxc6 {[%emt 0:00:54]} dxc6 {[%emt 0:01:13]} 5. O-O {[%emt 0:01:42]} Bg7 {[%emt 0:00:13]} 6. d3 {[%emt 0:01:58]} Nf6 {[%emt 0:00:19]} 7. h3 {[%emt 0:00:36]} Nd7 {[%emt 0:01:20]} 8. Nc3 {[%emt 0:02:08]} O-O {[%emt 0:00:10]} 9. a4 {[%emt 0:02:31]} e5 {[%emt 0:07:43]} 10. Re1 {[%emt 0:05:56]} Re8 {[%emt 0:00:14]} 11. Nd2 {[%emt 0:04:20]} Nf8 {[%emt 0:00:20]} 12. Nc4 {[%emt 0:01:18]} Ne6 {[%emt 0:00:36]} 13. a5 {[%emt 0:09:00]} Qc7 {[%emt 0:02:47]} 14. Na4 {[%emt 0:01:57]} Rb8 {[%emt 0:01:50]} 15. Bd2 {[%emt 0:02:01]} Qe7 {[%emt 0:08:47]} 16. Rb1 {[%emt 0:03:31]} Qc7 {[%emt 0:16:56]} 17. Bc3 {[%emt 0:08:52]} f6 {[%emt 0:01:43]} 18. Qd2 {[%emt 0:01:05]} Bf8 {[%emt 0:00:31]} 19. Kh1 {[%emt 0:16:13]} Rd8 {[%emt 0:02:30]} 20. Qe3 {[%emt 0:05:19]} Bd7 {[%emt 0:01:24]} 21. Ra1 {[%emt 0:06:32]} Be8 {[%emt 0:00:54]} 22. Qf3 {[%emt 0:01:24]} Be7 {[%emt 0:09:39]} 23. Qg3 {[%emt 0:04:56]} Bf7 {[%emt 0:02:13]} 24. b3 {[%emt 0:04:35]} Nd4 {[%emt 0:02:45]} 25. Ne3 {[%emt 0:00:29]} b5 {[%emt 0:01:58]} 26. axb6 {[%emt 0:00:07]} axb6 {[%emt 0:00:04]} 27. Nb2 {[%emt 0:00:12]} Ra8 {[%emt 0:02:17]} 28. Bxd4 {[%emt 0:04:54]} cxd4 {[%emt 0:00:16]} 29. Nf5 {[%emt 0:00:10]} Bb4 {[%emt 0:00:36]} 30. Reb1 {[%emt 0:02:16]} Rxa1 {[%emt 0:01:09]} 31. Rxa1 {[%emt 0:00:04]} Bc3 {[%emt 0:00:05]} 32. Ra2 {[%emt 0:00:29]} Bxb2 {[%emt 0:00:35]} 33. Rxb2 {[%emt 0:01:39]} Qa7 {[%emt 0:00:24]} 34. Rb1 {[%emt 0:00:51]} Qa2 {[%emt 0:01:23]} 35. Rf1 Qa3 36. f4 {[%emt 0:01:03]} exf4 {[%emt 0:26:05]} 37. Nh6+ {[%emt 0:00:56]} Kg7 {[%emt 0:00:05]} 38. Qxf4 {[%emt 0:00:08]} Qd6 39. Qxd6 {[%emt 0:07:01]} Rxd6 {[%emt 0:01:09]} 40. Nxf7 {[%emt 0:01:13]} Kxf7 {[%emt 0:00:05]} 41. e5 {[%emt 0:01:00]} Re6 {[%emt 0:00:04]} 42. Rxf6+ {[%emt 0:00:10]} Rxf6 {[%emt 0:00:04]} 43. exf6 {[%emt 0:00:04]} Kxf6 {[%emt 0:00:05]} 44. Kh2 {[%emt 0:00:36]} g5 {[%emt 0:00:29]} 45. Kg3 {[%emt 0:00:23]} h5 {[%emt 0:05:35]} 46. h4 {[%emt 0:01:18]} Kf5 {[%emt 0:00:03]} 47. hxg5 {[%emt 0:00:05]} Kxg5 {[%emt 0:00:03]} 48. Kf3 {[%emt 0:00:08]} h4 {[%emt 0:01:04]} 49. Kf2 {[%emt 0:01:20]} Kf4 {[%emt 0:00:18]} 50. Kg1 {[%emt 0:00:36]} Ke3 {[%emt 0:00:46]} 51. Kh2 {[%emt 0:00:30]} Kd2 {[%emt 0:00:05]} 52. Kh3 {[%emt 0:00:30]} Kxc2 {[%emt 0:00:07]} 53. Kxh4 {[%emt 0:00:04]} Kxd3 {[%emt 0:00:02]} 54. g4 {[%emt 0:00:03]} Ke4 {[%emt 0:00:04]} 55. g5 {[%emt 0:00:06]} d3 {[%emt 0:00:10]} 56. g6 d2 {[%emt 0:00:03]} 57. g7 {[%emt 0:00:05]} d1=Q 0-1

[Event "FIDE WCCC Girls-10 2024"]
[Site "Montesilvano"]
[Date "2024.11.24"]
[Round "9.2"]
[White "Berikkyzy Alanna"]
[Black "Nguyen Doan, Bao Anh Angelina"]
[Result "1/2-1/2"]
[Annotator "NA RC"]
[ECO "B41"]
[WhiteElo "2043"]
[BlackElo "1628"]
[PlyCount "126"]
[EventDate "2024.11.18"]
[EventType "swiss"]
[EventCountry "ITA"]
[SourceTitle "playchess.com"]
[Source "ChessBase"]
[SourceQuality "1"]
[TimeControl "5400+30"]

1. e4 {[%emt 0:00:11]} c5 {[%emt 0:00:11]} 2. Nf3 {[%emt 0:00:26]} e6 {[%emt 0:00:26]} 3. d4 {[%emt 0:00:43]} cxd4 {[%emt 0:00:22]} 4. Nxd4 {[%emt 0:00:18]} a6 {[%emt 0:00:22]} 5. c4 {[%emt 0:00:51]} Nf6 {[%emt 0:00:47]} 6. Nc3 {[%emt 0:00:22]} Bb4 {[%emt 0:00:41]} 7. Qd3 {[%emt 0:00:41]} O-O {[%emt 0:03:47]} 8. Be2 {[%emt 0:04:23]} Nc6 {[%emt 0:15:45]} 9. O-O {[%emt 0:06:00]} Bxc3 {[%emt 1:12:39]} 10. bxc3 {[%emt 1:21:35]} d5 {[%emt 0:00:00]} 11. cxd5 {[%emt 0:00:00]} exd5 {[%emt 0:00:00]} 12. exd5 {[%emt 0:00:00]} Ne5 {[%emt 0:00:00]} 13. Qg3 {[%emt 0:00:00]} Qxd5 {[%emt 0:00:00]} 14. Rd1 {[%emt 0:00:00]} Ng6 {[%emt 0:00:00]} 15. c4 {[%emt 0:00:00]} Qe5 {[%emt 0:00:00]} 16. Qxe5 {[%emt 0:00:00]} Nxe5 {[%emt 0:00:00]} 17. f4 {[%emt 0:00:00]} Ned7 {[%emt 0:00:00]} 18. Bf3 {[%emt 0:00:00]} Re8 {[%emt 0:00:00]} 19. Rb1 {[%emt 0:00:00]} Nc5 {[%emt 0:00:00]} 20. Ba3 {[%emt 0:00:00]} Nce4 {[%emt 0:00:00]} 21. Rb3 {[%emt 0:00:00]} h5 {[%emt 0:00:58]} 22. h3 {[%emt 0:00:00]} h4 {[%emt 0:02:20]} 23. Re3 {[%emt 0:00:00]} Bd7 {[%emt 0:02:25]} 24. Bxe4 {[%emt 0:00:00]} Rxe4 {[%emt 0:01:00]} 25. Rxe4 {[%emt 0:00:00]} Nxe4 {[%emt 0:00:03]} 26. Nf3 {[%emt 0:00:00]} Bc6 {[%emt 0:00:55]} 27. Nxh4 {[%emt 0:00:00]} Nc3 {[%emt 0:00:28]} 28. Rd2 {[%emt 0:00:00]} Re8 {[%emt 0:00:39]} 29. Rf2 {[%emt 0:00:00]} Re1+ {[%emt 0:00:30]} 30. Kh2 {[%emt 0:00:00]} Re4 {[%emt 0:00:25]} 31. Bd6 {[%emt 0:00:00]} Rxc4 {[%emt 0:00:44]} 32. Rb2 {[%emt 0:00:00]} b5 {[%emt 0:00:26]} 33. Nf5 {[%emt 0:00:00]} Ne4 {[%emt 0:00:29]} 34. Bb8 {[%emt 0:00:00]} f6 {[%emt 0:00:29]} 35. h4 {[%emt 0:00:00]} g6 {[%emt 0:00:22]} 36. Ne3 {[%emt 0:00:00]} Rc3 {[%emt 0:00:17]} 37. Ng4 {[%emt 0:00:00]} Kf7 {[%emt 0:00:43]} 38. Ba7 {[%emt 0:00:00]} Bd5 {[%emt 0:00:38]} 39. Ne3 {[%emt 0:00:00]} Be6 {[%emt 0:00:24]} 40. Rb4 {[%emt 0:00:00]} f5 {[%emt 0:00:32]} 41. a4 {[%emt 0:00:00]} Rc7 {[%emt 0:00:32]} 42. Bb8 {[%emt 0:00:00]} Rb7 {[%emt 0:00:15]} 43. Be5 {[%emt 0:00:00]} Ke7 {[%emt 0:00:41]} 44. axb5 axb5 {[%emt 0:00:21]} 45. g4 {[%emt 0:00:00]} Nf2 46. gxf5 {[%emt 0:00:00]} gxf5 {[%emt 0:01:05]} 47. Bc3 {[%emt 0:00:00]} Ne4 {[%emt 0:00:25]} 48. Bb2 {[%emt 0:02:01]} Kd7 {[%emt 0:00:41]} 49. Nc2 {[%emt 0:01:13]} Bc4 {[%emt 0:00:35]} 50. Na3 {[%emt 0:01:04]} Nd6 {[%emt 0:00:33]} 51. Be5 {[%emt 0:01:18]} Rb6 {[%emt 0:00:31]} 52. Bxd6 {[%emt 0:04:35]} Rxd6 {[%emt 0:00:14]} 53. Nxc4 {[%emt 0:00:06]} bxc4 {[%emt 0:00:03]} 54. Rxc4 {[%emt 0:00:03]} Rd2+ {[%emt 0:00:28]} 55. Kg3 {[%emt 0:00:07]} Rd3+ {[%emt 0:00:04]} 56. Kg2 {[%emt 0:01:41]} Rd2+ {[%emt 0:00:10]} 57. Kf3 {[%emt 0:00:08]} Rd3+ {[%emt 0:00:21]} 58. Ke2 {[%emt 0:00:32]} Rh3 {[%emt 0:00:25]} 59. Ra4 {[%emt 0:00:46]} Rxh4 {[%emt 0:00:26]} 60. Ke3 {[%emt 0:00:14]} Rh1 {[%emt 0:00:57]} 61. Kd3 {[%emt 0:00:37]} Re1 {[%emt 0:00:58]} 62. Ra7+ {[%emt 0:01:24]} Ke6 {[%emt 0:00:39]} 63. Ra6+ {[%emt 0:00:12]} Kf7 {[%emt 0:00:22]} 1/2-1/2

[Event "FIDE WCCC Girls-10 2024"]
[Site "Montesilvano"]
[Date "2024.11.24"]
[Round "9.3"]
[White "Yang, Aimee"]
[Black "Pooja Shree R"]
[Result "1-0"]
[Annotator "NA RC"]
[ECO "A45"]
[WhiteElo "1864"]
[BlackElo "1615"]
[PlyCount "71"]
[EventDate "2024.11.18"]
[EventType "swiss"]
[EventCountry "ITA"]
[SourceTitle "playchess.com"]
[Source "ChessBase"]
[SourceQuality "1"]
[TimeControl "5400+30"]

1. d4 {[%emt 0:00:02]} Nf6 {[%emt 0:01:13]} 2. Bf4 {[%emt 0:00:30]} g6 {[%emt 0:00:13]} 3. Nc3 {[%emt 0:00:24]} d5 {[%emt 0:00:27]} 4. e3 {[%emt 0:00:21]} Bg7 {[%emt 0:01:03]} 5. h4 {[%emt 0:00:55]} O-O {[%emt 0:11:22]} 6. h5 {[%emt 0:00:57]} c6 {[%emt 0:11:51]} 7. hxg6 {[%emt 0:02:28]} fxg6 {[%emt 0:01:43]} 8. Nf3 {[%emt 0:01:45]} Bg4 {[%emt 0:08:39]} 9. Be2 {[%emt 0:01:22]} Nh5 {[%emt 0:05:49]} 10. Bh2 {[%emt 0:03:48]} Nd7 {[%emt 0:10:50]} 11. Ng5 {[%emt 0:01:15]} Bxe2 {[%emt 0:00:28]} 12. Nxe2 {[%emt 0:05:39]} c5 {[%emt 0:07:10]} 13. Ne6 {[%emt 0:02:34]} Qa5+ {[%emt 0:00:16]} 14. c3 {[%emt 0:00:10]} cxd4 {[%emt 0:02:45]} 15. N2xd4 {[%emt 0:02:04]} Rf7 {[%emt 0:10:48]} 16. Ng5 {[%emt 0:12:38]} Rff8 {[%emt 0:10:29]} 17. Nb3 {[%emt 0:00:43]} Qb5 {[%emt 0:01:56]} 18. Ne6 {[%emt 0:00:26]} Ne5 {[%emt 0:08:46]} 19. Bxe5 {[%emt 0:01:03]} Bxe5 {[%emt 0:00:07]} 20. Nxf8 {[%emt 0:00:14]} Rxf8 {[%emt 0:00:06]} 21. Qe2 {[%emt 0:00:58]} Qb6 {[%emt 0:02:38]} 22. O-O-O {[%emt 0:00:47]} e6 {[%emt 0:01:23]} 23. Rh4 {[%emt 0:01:22]} Bf6 {[%emt 0:01:01]} 24. Rh3 {[%emt 0:00:52]} a5 {[%emt 0:00:24]} 25. Nd4 {[%emt 0:01:24]} e5 {[%emt 0:00:36]} 26. Qb5 {[%emt 0:01:04]} Qd6 {[%emt 0:00:33]} 27. Nf5 {[%emt 0:01:19]} gxf5 {[%emt 0:00:24]} 28. Rxh5 {[%emt 0:00:10]} d4 {[%emt 0:00:27]} 29. Rxf5 {[%emt 0:00:42]} Qc7 {[%emt 0:01:01]} 30. Qd5+ {[%emt 0:01:06]} Kh8 {[%emt 0:00:23]} 31. exd4 {[%emt 0:00:21]} exd4 {[%emt 0:00:36]} 32. Qxa5 {[%emt 0:02:52]} Qc8 {[%emt 0:00:29]} 33. Rxf6 {[%emt 0:02:01]} Rxf6 {[%emt 0:00:06]} 34. Qe5 {[%emt 0:00:07]} Kg7 {[%emt 0:00:24]} 35. Rxd4 {[%emt 0:00:11]} Kg6 {[%emt 0:00:42]} 36. f3 {[%emt 0:00:52]} 1-0

[Event "FIDE WCCC Girls-10 2024"]
[Site "Montesilvano"]
[Date "2024.11.24"]
[Round "9.4"]
[White "Filippova, Milana"]
[Black "Nandinjiguur, Chinzorig"]
[Result "1-0"]
[Annotator "NA RC"]
[ECO "C77"]
[WhiteElo "1687"]
[BlackElo "1807"]
[PlyCount "113"]
[EventDate "2024.11.18"]
[EventType "swiss"]
[EventCountry "ITA"]
[SourceTitle "playchess.com"]
[Source "ChessBase"]
[SourceQuality "1"]
[TimeControl "5400+30"]

1. e4 {[%emt 0:00:05]} e5 {[%emt 1:31:00]} 2. Nf3 {[%emt 0:00:07]} Nc6 {[%emt 0:00:00]} 3. Bb5 {[%emt 0:00:07]} a6 {[%emt 0:00:00]} 4. Ba4 {[%emt 0:00:06]} Nf6 {[%emt 0:00:00]} 5. d4 {[%emt 0:00:55]} b5 {[%emt 0:00:00]} 6. dxe5 {[%emt 0:00:45]} bxa4 {[%emt 0:00:00]} 7. exf6 {[%emt 0:00:06]} Qxf6 {[%emt 0:00:00]} 8. O-O {[%emt 0:04:22]} Be7 {[%emt 0:00:00]} 9. Nc3 {[%emt 0:01:59]} O-O {[%emt 0:04:00]} 10. Nd5 {[%emt 0:04:13]} Qg6 {[%emt 0:00:00]} 11. Nxc7 {[%emt 0:01:37]} Ra7 {[%emt 0:00:00]} 12. Nd5 {[%emt 0:01:30]} Bc5 {[%emt 0:00:00]} 13. Re1 {[%emt 0:02:35]} Re8 {[%emt 0:00:00]} 14. Nh4 {[%emt 0:04:20]} Qe6 {[%emt 0:00:00]} 15. Be3 {[%emt 0:08:00]} Bxe3 {[%emt 0:00:00]} 16. Rxe3 {[%emt 0:00:13]} Ne5 {[%emt 0:00:00]} 17. Nf5 {[%emt 0:03:21]} g6 {[%emt 0:00:00]} 18. Nd4 {[%emt 0:02:39]} Qd6 {[%emt 0:00:00]} 19. b3 {[%emt 0:03:47]} Bb7 {[%emt 0:00:00]} 20. c4 {[%emt 0:00:21]} Bxd5 {[%emt 0:00:00]} 21. exd5 {[%emt 0:01:05]} Qf6 {[%emt 0:00:00]} 22. Qe2 {[%emt 0:07:53]} Raa8 {[%emt 0:00:00]} 23. Re1 {[%emt 0:03:21]} d6 {[%emt 0:00:00]} 24. Nc6 {[%emt 0:00:53]} axb3 {[%emt 0:00:00]} 25. axb3 {[%emt 0:00:07]} Rec8 {[%emt 0:02:06]} 26. Nxe5 {[%emt 0:03:20]} dxe5 {[%emt 0:00:13]} 27. Rxe5 {[%emt 0:01:09]} Rcb8 {[%emt 0:00:57]} 28. Re3 {[%emt 0:03:34]} Qd6 {[%emt 0:01:02]} 29. Qf3 {[%emt 0:01:22]} a5 {[%emt 0:01:09]} 30. Re7 {[%emt 0:00:46]} Rf8 {[%emt 0:00:35]} 31. Qg3 {[%emt 0:04:27]} Qb4 {[%emt 0:01:24]} 32. d6 {[%emt 0:02:25]} Rad8 {[%emt 0:00:21]} 33. Rd1 {[%emt 0:02:37]} a4 {[%emt 0:01:50]} 34. bxa4 {[%emt 0:02:59]} Qxc4 {[%emt 0:01:08]} 35. Qa3 {[%emt 0:01:27]} Ra8 {[%emt 0:00:59]} 36. a5 {[%emt 0:02:08]} Qb5 {[%emt 0:00:10]} 37. Ra1 {[%emt 0:01:13]} Rfb8 {[%emt 0:01:02]} 38. h3 {[%emt 0:00:52]} Rd8 {[%emt 0:00:58]} 39. Qf3 {[%emt 0:01:14]} Qc4 {[%emt 0:00:33]} 40. d7 {[%emt 0:03:00]} Rf8 {[%emt 0:00:30]} 41. Qxa8 {[%emt 0:01:54]} Rxa8 {[%emt 0:00:28]} 42. Re8+ {[%emt 0:00:11]} Kg7 {[%emt 0:00:15]} 43. Rxa8 {[%emt 0:00:19]} Qd4 44. d8=Q {[%emt 0:01:03]} Qxa1+ {[%emt 0:00:30]} 45. Kh2 {[%emt 0:00:13]} Qe5+ {[%emt 0:00:09]} 46. g3 {[%emt 0:00:14]} Qf5 {[%emt 0:00:33]} 47. Qd4+ {[%emt 0:00:21]} Kh6 48. Qf4+ {[%emt 0:00:15]} Qxf4 {[%emt 0:00:56]} 49. gxf4 g5 {[%emt 0:00:10]} 50. a6 {[%emt 0:00:16]} gxf4 {[%emt 0:00:07]} 51. Rg8 {[%emt 0:00:08]} f5 52. a7 {[%emt 0:00:10]} f3 {[%emt 0:00:17]} 53. a8=Q {[%emt 0:00:07]} f4 {[%emt 0:00:08]} 54. Qc6+ {[%emt 0:00:11]} Kh5 {[%emt 0:00:08]} 55. Qxf3+ {[%emt 0:00:10]} Kh6 {[%emt 0:00:05]} 56. Qxf4+ {[%emt 0:00:10]} Kh5 {[%emt 0:00:08]} 57. Qg5# {[%emt 0:00:06]} 1-0

[Event "FIDE WCCC Girls-10 2024"]
[Site "Montesilvano"]
[Date "2024.11.24"]
[Round "9.5"]
[White "Bakhshi, Rana"]
[Black "Anistoroaei, Maria"]
[Result "0-1"]
[Annotator "NA RC"]
[ECO "D52"]
[WhiteElo "1727"]
[BlackElo "1715"]
[PlyCount "96"]
[EventDate "2024.11.18"]
[EventType "swiss"]
[EventCountry "ITA"]
[SourceTitle "playchess.com"]
[Source "ChessBase"]
[SourceQuality "1"]
[TimeControl "5400+30"]

1. d4 {[%emt 0:00:32]} d5 {[%emt 0:00:08]} 2. c4 {[%emt 0:00:48]} c6 {[%emt 0:00:08]} 3. Nf3 {[%emt 0:01:03]} Nf6 {[%emt 0:01:03]} 4. Nc3 {[%emt 0:01:23]} e6 {[%emt 0:00:10]} 5. Bg5 {[%emt 0:01:31]} Bd6 {[%emt 0:05:00]} 6. e3 {[%emt 0:02:32]} Nbd7 {[%emt 0:00:31]} 7. Qc2 {[%emt 0:05:52]} O-O {[%emt 0:02:46]} 8. Bd3 {[%emt 0:02:45]} Qc7 {[%emt 0:13:24]} 9. h3 {[%emt 0:05:56]} dxc4 {[%emt 0:03:37]} 10. Bxc4 {[%emt 0:01:16]} a6 {[%emt 0:01:42]} 11. e4 {[%emt 0:06:45]} e5 {[%emt 0:03:15]} 12. dxe5 {[%emt 0:03:01]} Nxe5 {[%emt 0:01:04]} 13. Bb3 {[%emt 0:02:35]} Nfd7 {[%emt 0:06:18]} 14. Be3 {[%emt 0:04:09]} b5 {[%emt 0:04:14]} 15. Nh4 {[%emt 0:03:33]} Bc5 {[%emt 0:07:05]} 16. Nf5 {[%emt 0:04:09]} Bxe3 {[%emt 0:01:07]} 17. Nxe3 {[%emt 0:04:44]} Nc5 {[%emt 0:01:45]} 18. O-O {[%emt 0:02:29]} a5 {[%emt 0:12:17]} 19. a4 {[%emt 0:05:46]} b4 {[%emt 0:03:50]} 20. Ne2 {[%emt 0:03:19]} Nxb3 {[%emt 0:03:16]} 21. Qxb3 {[%emt 0:00:17]} Be6 {[%emt 0:00:53]} 22. Qc2 {[%emt 0:01:31]} Rad8 {[%emt 0:13:03]} 23. Ng3 {[%emt 0:05:04]} Rd3 {[%emt 0:03:50]} 24. Nef5 {[%emt 0:04:19]} Rfd8 {[%emt 0:05:02]} 25. f4 {[%emt 0:05:02]} Rd2 {[%emt 0:02:15]} 26. Qc5 {[%emt 0:01:14]} Ng6 {[%emt 0:00:36]} 27. Nh5 {[%emt 0:05:17]} Bxf5 {[%emt 0:01:08]} 28. exf5 {[%emt 0:02:45]} Nh4 {[%emt 0:00:50]} 29. Rf2 {[%emt 0:00:40]} R2d5 {[%emt 0:02:13]} 30. Qc1 {[%emt 0:02:17]} Nxf5 {[%emt 0:00:34]} 31. g4 {[%emt 0:00:51]} Nd4 {[%emt 0:00:36]} 32. f5 {[%emt 0:01:48]} Qa7 {[%emt 0:01:24]} 33. Kg2 {[%emt 0:01:02]} f6 {[%emt 0:00:30]} 34. Qf4 Qf7 35. Rg1 {[%emt 0:03:00]} Re5 {[%emt 0:01:19]} 36. Kh2 {[%emt 0:02:09]} Ne2 {[%emt 0:00:37]} 37. Qf3 {[%emt 0:00:57]} Nxg1 {[%emt 0:00:11]} 38. Kxg1 Re1+ {[%emt 0:00:36]} 39. Kh2 {[%emt 0:00:19]} Qd5 {[%emt 0:00:36]} 40. Qxd5+ {[%emt 0:01:31]} Rxd5 {[%emt 0:00:58]} 41. Nf4 {[%emt 0:00:21]} Rde5 {[%emt 0:00:33]} 42. Nd3 {[%emt 0:00:29]} R5e2 {[%emt 0:00:19]} 43. Rxe2 {[%emt 0:00:55]} Rxe2+ {[%emt 0:00:05]} 44. Kg1 {[%emt 0:00:13]} Rd2 {[%emt 0:00:08]} 45. Nc5 {[%emt 0:00:32]} Rxb2 {[%emt 0:00:29]} 46. Nb7 {[%emt 0:00:42]} b3 {[%emt 0:00:16]} 47. Nxa5 {[%emt 0:00:05]} Rb1+ {[%emt 0:00:15]} 48. Kf2 {[%emt 0:00:14]} b2 0-1

[Event "FIDE WCCC Girls-10 2024"]
[Site "Montesilvano"]
[Date "2024.11.24"]
[Round "9.6"]
[White "Peng, Jingyi(Gd)"]
[Black "Kuvandikova, Nafisa"]
[Result "1-0"]
[Annotator "NA RC"]
[ECO "E91"]
[WhiteElo "1720"]
[BlackElo "1512"]
[PlyCount "53"]
[EventDate "2024.11.18"]
[EventType "swiss"]
[EventCountry "ITA"]
[SourceTitle "playchess.com"]
[Source "ChessBase"]
[SourceQuality "1"]
[TimeControl "5400+30"]

1. Nf3 {[%emt 0:00:02]} Nf6 {[%emt 0:00:20]} 2. c4 {[%emt 0:00:05]} g6 {[%emt 0:00:21]} 3. Nc3 {[%emt 0:00:09]} Bg7 {[%emt 0:00:52]} 4. e4 {[%emt 0:00:13]} d6 {[%emt 0:00:48]} 5. d4 {[%emt 0:00:07]} O-O {[%emt 0:00:55]} 6. Be2 {[%emt 0:00:05]} e6 {[%emt 0:02:28]} 7. O-O {[%emt 0:00:22]} b6 {[%emt 0:00:52]} 8. d5 {[%emt 0:05:53]} e5 {[%emt 0:03:29]} 9. Rb1 {[%emt 0:03:49]} h6 {[%emt 0:05:45]} 10. b4 {[%emt 0:00:17]} Nh5 {[%emt 0:01:02]} 11. c5 {[%emt 0:09:25]} f5 {[%emt 0:05:29]} 12. Ba3 {[%emt 0:06:37]} f4 {[%emt 0:07:10]} 13. cxd6 {[%emt 0:06:58]} cxd6 {[%emt 0:01:04]} 14. Nd2 {[%emt 0:03:30]} Nf6 {[%emt 0:04:40]} 15. Nc4 {[%emt 0:00:41]} Qe7 {[%emt 0:01:58]} 16. b5 {[%emt 0:03:52]} Rd8 {[%emt 0:01:28]} 17. Rc1 {[%emt 0:02:54]} Ne8 {[%emt 0:05:58]} 18. Bg4 {[%emt 0:02:02]} Bxg4 {[%emt 0:01:20]} 19. Qxg4 {[%emt 0:00:07]} Qf7 {[%emt 0:02:14]} 20. Qe6 {[%emt 0:08:43]} Qxe6 {[%emt 0:52:17]} 21. dxe6 {[%emt 0:45:09]} Kf8 {[%emt 0:00:00]} 22. Nd5 {[%emt 0:00:00]} Kg8 {[%emt 0:00:00]} 23. e7 {[%emt 0:01:00]} Rd7 {[%emt 0:00:00]} 24. Nxd6 {[%emt 0:00:00]} Nxd6 {[%emt 0:00:00]} 25. Bxd6 {[%emt 0:00:00]} Kf7 {[%emt 0:00:00]} 26. Rc8 {[%emt 0:00:00]} Ke6 {[%emt 0:00:00]} 27. e8=Q+ {[%emt 0:00:00]} 1-0